bitfinex/quotes_ETHUSD_20251028
["timestamp","ask_amount","ask_price","bid_price","bid_amount"]
[1761634845301,0.009,4115.3,4115.2,17.36341555]
[1761634846711,0.009,4115.3,4115.2,17.76891955]
[1761634846909,0.009,4115.3,4115.2,22.17609827]
[1761634850499,0.009,4115.3,4115.2,21.77059427]
[1761634850703,0.009,4115.3,4115.2,17.36341555]
[1761634850940,0.009,4115.3,4115.2,24.17889922]
[1761634853213,0.009,4115.3,4115.2,24.30049922]
[1761634854612,1.5552,4117.1,4116.4,3.19496336]
[1761634854806,0.099,4116.7,4116.5,3.19496336]
[1761634855430,0.099,4116.7,4116.6,14.5]
[1761634858373,0.099,4116.7,4116.6,17.69496336]
[1761634858533,1.6542,4116.7,4116.6,17.69496336]
[1761634861563,0.099,4116.7,4116.6,17.69496336]
[1761634862073,0.01,4116.8,4116.6,16.92914397]
[1761634862230,0.01,4116.8,4116.7,4.12204452]
[1761634862572,0.01,4116.8,4116.7,7.26610414]
[1761634862770,0.01,4116.8,4116.7,22.17521284]
[1761634863136,0.01,4116.8,4116.7,17.36253012]
[1761634863334,0.01,4116.8,4116.7,14.9334]
[1761634863567,0.01,4116.8,4116.7,16.92913012]
[1761634863896,0.01,4116.8,4116.7,19.71907542]
[1761634864194,0.01822724,4117.7,4116.7,19.28567542]
[1761634864473,0.01822724,4117.7,4117.2,4.40717872]
[1761634864641,0.01822724,4117.7,4117.6,0.1216]
[1761634864840,0.01822724,4117.7,4117.6,14.6216]
[1761634865050,0.01,4118.8,4117.8,2.42844308]
[1761634865280,0.01,4118.8,4117.7,0.4575]
[1761634865590,0.01,4118.8,4118.2,2.42822987]
[1761634865874,0.01,4118.8,4118.5,14.5]
[1761634866246,0.099,4119.0,4118.5,14.5]
[1761634866441,1.5552,4118.9,4118.5,14.5]
[1761634866828,0.099,4118.8,4118.5,14.5]
[1761634868145,4.40717872,4118.7,4118.5,14.5]
[1761634868545,0.099,4118.6,4118.5,14.5]
[1761634869756,1.6542,4118.6,4118.5,14.5]
[1761634870577,0.405504,4118.5,4117.1,0.01]
[1761634870891,1.5552,4117.2,4117.1,0.01]
[1761634871188,5.96237872,4117.2,4117.1,14.51]
[1761634871344,6.16947872,4117.2,4117.1,14.51]
[1761634873048,6.16947872,4117.2,4117.1,0.01]
[1761634873850,6.16659704,4117.2,4117.1,0.01]
[1761634874056,1.7623,4117.2,4117.1,0.01]
[1761634874954,1.8839,4117.2,4117.1,0.01]
[1761634875977,2.289404,4117.2,4117.1,0.01]
[1761634876167,1.960704,4117.1,4116.2,14.5]
[1761634876479,0.2708,4116.3,4116.2,14.5]
[1761634876779,0.735704,4116.3,4116.1,0.01]
[1761634876943,0.0594,4116.2,4116.1,0.01]
[1761634877356,0.0594,4116.2,4116.1,14.51]
[1761634877579,0.0594,4116.2,4116.1,0.01]
[1761634878076,0.464904,4116.2,4116.1,0.01]
[1761634878575,13.70135929,4116.2,4116.1,0.01]
[1761634878781,15.25655929,4116.2,4116.1,0.01]
[1761634879676,2.020104,4116.2,4116.1,0.01]
[1761634880490,1.5552,4116.2,4116.1,0.01]
[1761634880691,1.6146,4116.2,4116.1,0.01]
[1761634881392,1.5552,4116.2,4116.1,0.01]
[1761634881561,1.5552,4116.2,4116.1,14.51]
[1761634882913,1.6146,4116.2,4116.1,14.51]
[1761634883609,1.5552,4116.2,4116.1,14.51]
[1761634885100,1.6155,4116.2,4116.1,14.51]
[1761634885401,1.5552,4116.2,4116.1,14.51]
[1761634886465,1.6155,4116.2,4116.1,14.51]
[1761634886877,1.5552,4116.2,4116.1,14.51]
[1761634889921,1.6155,4116.2,4116.1,14.51]
[1761634890215,1.5552,4116.2,4116.1,14.51]
[1761634891012,1.6155,4116.2,4116.1,14.51]
[1761634891213,1.5552,4116.2,4116.1,14.51]
[1761634891367,0.1216,4116.3,4116.1,14.51]
[1761634891564,10.23,4125.0,4116.1,14.51]
[1761634891565,0.0594,4117.8,4116.2,0.47239425]
[1761634891770,0.0594,4117.8,4116.2,0.4481]
[1761634892003,0.405504,4117.7,4116.2,0.4481]
[1761634892501,0.0594,4117.6,4116.2,0.4481]
[1761634893286,0.405504,4117.5,4116.2,0.4481]
[1761634893485,0.405504,4117.5,4116.1,14.7468]
[1761634893701,0.405504,4117.3,4116.1,14.7468]
[1761634894196,0.0594,4117.2,4116.1,14.51]
[1761634894402,0.405504,4117.1,4116.1,14.51]
[1761634894764,0.405504,4116.9,4116.1,14.51]
[1761634894964,0.1483,4116.2,4116.1,14.51]
[1761634895898,0.1483,4116.2,4116.1,14.512]
[1761634896069,0.405504,4116.6,4116.1,14.512]
[1761634896603,0.405504,4116.4,4116.1,14.512]
[1761634897103,0.464904,4116.4,4116.1,14.512]
[1761634897465,0.405504,4116.4,4116.1,14.512]
[1761634897684,0.0594,4116.3,4116.1,14.512]
[1761634898001,0.0594,4116.3,4116.1,0.012]
[1761634898002,0.405504,4116.2,4116.1,0.012]
[1761634898383,0.464904,4116.2,4116.1,0.012]
[1761634899170,0.1492,4116.5,4116.1,0.012]
[1761634899171,0.405504,4116.4,4116.1,0.012]
[1761634899385,0.464904,4116.4,4116.1,0.012]
[1761634899586,0.405504,4116.2,4116.1,0.012]
[1761634900005,0.405504,4116.4,4116.1,0.012]
[1761634901130,0.1492,4116.5,4116.1,0.012]
[1761634901296,0.1492,4116.5,4116.2,14.5]
[1761634901833,0.1216,4116.3,4116.2,14.5]
[1761634902420,0.1216,4116.3,4116.2,14.9538]
[1761634904404,0.1216,4116.3,4116.2,14.5]
[1761634904605,0.1216,4116.3,4116.2,15.5]
[1761634904976,0.527104,4116.3,4116.2,15.5]
[1761634905309,0.587404,4116.3,4116.2,15.5]
[1761634906473,0.587404,4116.3,4116.2,1.0]
[1761634908812,0.1819,4116.3,4116.2,1.0]
[1761634909212,0.587404,4116.3,4116.2,1.0]
[1761634910308,0.527104,4116.3,4116.2,1.0]
[1761634910710,0.0603,4116.3,4116.2,1.0]
[1761634912041,2.021004,4116.3,4116.2,1.0]
[1761634912539,1.6155,4116.3,4116.2,1.0]
[1761634913035,2.021004,4116.3,4116.2,1.0]
[1761634915335,2.75049881,4116.3,4116.2,1.0]
[1761634915858,18.58811566,4116.3,4116.2,1.0]
[1761634920726,18.70971566,4116.3,4116.2,1.0]
[1761634920922,15.68291166,4116.3,4116.2,1.0]
[1761634921251,1.6768,4116.3,4116.2,1.0]
[1761634921566,1.5552,4116.3,4116.2,1.4538]
[1761634921723,1.6768,4116.3,4116.2,1.4538]
[1761634922123,1.6768,4116.3,4116.2,15.9538]
[1761634923463,1.6768,4116.3,4116.2,15.5]
[1761634924549,1.6768,4116.3,4116.2,15.9306]
[1761634924843,1.6768,4116.3,4116.2,15.5]
[1761634925643,2.082304,4116.3,4116.2,15.5]
[1761634925837,2.082304,4116.3,4116.2,1.0]
[1761634929829,15.35892085,4116.3,4116.2,1.0]
[1761634931935,2.082304,4116.3,4116.2,1.0]
[1761634932443,0.1216,4116.3,4116.2,1.437]
[1761634932776,0.1216,4116.3,4116.2,15.937]
[1761634935230,0.1216,4116.3,4116.2,17.55538]
[1761634936072,0.001,4117.6,4116.2,17.55538]
[1761634936255,0.1216,4116.6,4116.3,0.437]
[1761634936632,0.406504,4117.6,4116.5,14.5]
[1761634936835,13.27661685,4116.9,4116.5,14.5]
[1761634937034,13.27661685,4116.9,4116.2,1.0]
[1761634937035,0.1216,4116.6,4116.2,1.0]
[1761634937234,0.405504,4117.4,4116.3,0.437]
[1761634937755,0.1216,4116.4,4116.3,0.437]
[1761634938068,0.1216,4116.4,4116.2,1.0]
[1761634938268,0.1216,4116.4,4116.3,0.437]
[1761634938568,0.1216,4116.4,4116.3,14.937]
[1761634941342,0.1216,4116.4,4116.3,14.5]
[1761634942578,0.1216,4116.4,4116.3,14.937]
[1761634946668,0.1216,4116.4,4116.3,16.5319]
[1761634946873,0.001,4117.1,4116.3,16.5319]
[1761634947191,0.405504,4116.8,4116.2,1.0]
[1761634947690,0.405504,4116.6,4116.2,1.0]
[1761634952913,1.5552,4116.7,4116.2,1.0]
[1761634953095,0.001,4117.1,4116.3,0.437]
[1761634953567,0.001,4117.1,4116.4,14.5]
[1761634954011,0.001,4117.1,4116.5,0.437]
[1761634954668,0.001,4117.1,4116.6,14.5]
[1761634955067,0.001,4117.1,4116.7,0.4539]
[1761634955665,0.001,4117.1,4116.8,14.5]
[1761634956100,0.001,4117.1,4116.8,14.9539]
[1761634956266,0.001,4117.1,4116.8,14.5]
[1761634957170,0.1216,4116.9,4116.8,14.5]
[1761634957604,0.527104,4116.9,4116.8,14.5]
[1761634957834,0.527104,4116.9,4116.2,1.0]
[1761634957835,1.960704,4116.8,4116.2,1.0]
[1761634958118,0.1216,4116.3,4116.2,1.0]
[1761634958818,0.1216,4116.3,4116.2,15.5]
[1761634963122,0.1216,4116.3,4116.2,15.9539]
[1761634963314,1.5552,4116.8,4116.2,15.9539]
[1761634963514,0.1216,4116.3,4116.2,15.9539]
[1761634965030,0.1216,4116.3,4116.2,15.5]
[1761634965616,0.1216,4116.3,4116.2,15.9539]
[1761634966925,0.1216,4116.3,4116.2,15.5]
[1761634967488,0.1216,4116.3,4116.2,15.9539]
[1761634968013,6.081953,4116.3,4116.2,15.9539]
[1761634968324,6.081953,4116.3,4116.2,15.5]
[1761634968525,6.081953,4116.3,4116.2,1.0]
[1761634968929,6.487457,4116.3,4116.2,1.0]
[1761634969831,6.48866297,4116.3,4116.2,1.0]
[1761634970246,15.32347858,4116.3,4116.2,1.0]
[1761634971836,15.32445018,4116.3,4116.2,1.0]
[1761634972021,15.59974852,4116.3,4116.2,1.0]
[1761634972226,15.32445018,4116.3,4116.2,1.0]
[1761634974049,1.6768,4116.3,4116.2,1.4539]
[1761634974722,0.1216,4116.3,4116.2,1.4539]
[1761634978970,0.1216,4116.3,4116.2,1.62313]
[1761634979666,0.1216,4116.3,4116.2,1.4539]
[1761634980574,0.1216,4116.3,4116.2,1.0]
[1761634981267,0.23424901,4115.1,4114.3,2.43048929]
[1761634981661,0.23424901,4115.1,4114.2,2.83610361]
[1761634981967,0.23424901,4115.1,4114.2,0.405504]
[1761634982143,0.23424901,4115.1,4114.3,2.43053209]
[1761634982469,0.23424901,4115.1,4114.2,0.405504]
[1761634982646,0.23424901,4115.1,4114.1,0.2468]
[1761634983383,0.23424901,4115.1,4115.0,0.4539]
[1761634985180,0.23424901,4115.1,4115.0,0.47820133]
[1761634985482,0.23424901,4115.1,4115.0,0.4539]
[1761634986207,2.66432361,4115.1,4115.0,0.4539]
[1761634987047,2.4300746,4115.1,4115.0,0.4539]
[1761634989577,2.43013365,4115.0,4114.8,0.002]
[1761634989781,3.98539271,4114.9,4114.8,0.002]
[1761634990297,3.98539271,4114.9,4114.8,0.4647]
[1761634991408,4.10699271,4114.9,4114.8,0.4647]
[1761634993077,4.10699271,4114.9,4114.8,0.002]
[1761634994024,8.51568637,4114.9,4114.8,0.002]
[1761634994482,8.79918637,4114.9,4114.8,0.002]
[1761634994677,8.70018637,4114.9,4114.8,0.002]
[1761634994877,8.79918637,4114.9,4114.8,0.002]
[1761634995186,8.70018637,4114.9,4114.8,0.002]
[1761634995497,8.51568637,4114.9,4114.8,0.002]
[1761634995696,8.51568637,4114.9,4114.8,0.4647]
[1761634995697,0.1216,4114.9,4114.8,0.4647]
[1761634995877,2.55179271,4114.9,4114.8,0.4647]
[1761634996307,2.55179271,4114.9,4114.8,0.002]
[1761634996507,4.10699271,4114.9,4114.8,0.002]
[1761634996713,2.43042897,4114.5,4114.4,0.4167]
[1761634997289,2.43042897,4114.5,4114.1,0.2468]
[1761634997488,2.55220619,4114.2,4114.1,0.2468]
[1761634998097,2.67668226,4115.5,4114.1,0.2468]
[1761634998293,0.1216,4115.0,4114.2,0.02430606]
[1761634998496,2.4302724,4114.8,4114.4,0.1216]
[1761634998719,2.43042276,4114.6,4114.4,0.1216]
[1761634998907,2.43032163,4114.7,4114.5,0.4627]
[1761634999108,0.001,4116.3,4114.6,0.02430369]
[1761634999305,2.42977812,4115.7,4114.8,2.43020342]
[1761634999518,2.55126822,4115.8,4115.2,0.1216]
[1761634999687,4.10646822,4115.8,4115.7,0.2201]
[1761634999889,0.1216,4115.8,4115.7,0.2201]
[1761635000186,2.5512613,4115.8,4115.7,0.6828]
[1761635000983,2.4299565,4115.3,4115.2,0.1216]
[1761635001190,1.5552,4115.7,4115.3,0.6828]
[1761635001398,2.42976367,4115.7,4115.3,0.6828]
[1761635001701,0.1216,4115.6,4115.4,0.4627]
[1761635002022,2.4298827,4115.5,4115.4,0.4627]
[1761635002238,2.42972599,4115.7,4115.4,0.4627]
[1761635002239,2.42972884,4115.7,4115.4,0.4627]
[1761635002436,0.1216,4115.9,4115.4,0.4627]
[1761635002789,2.42968415,4115.8,4115.4,0.4627]
[1761635002986,0.1216,4115.9,4115.4,0.4627]
[1761635003300,2.4296646,4115.8,4115.4,0.4627]
[1761635003505,2.42974902,4115.7,4115.4,0.78614688]
[1761635003716,2.42974902,4115.7,4115.4,0.4627]
[1761635004087,0.1216,4115.9,4115.4,0.4627]
[1761635004285,2.55126022,4115.9,4115.4,0.4627]
[1761635004488,2.42968416,4115.8,4115.4,0.4627]
[1761635004696,2.42968416,4115.8,4115.4,0.78614647]
[1761635004916,2.55121555,4115.9,4115.5,0.4627]
[1761635005125,2.55121555,4115.9,4115.6,3.19496336]
[1761635005422,2.42972033,4115.7,4115.6,3.19496336]
[1761635005820,0.1226,4115.9,4115.4,0.32344647]
[1761635006012,0.001,4115.9,4115.7,0.1216]
[1761635006392,0.001,4115.9,4115.8,2.8923613]
[1761635007105,0.001,4115.9,4115.8,3.32216191]
[1761635007425,0.001,4115.9,4115.8,3.2978653]
[1761635008323,0.001,4115.9,4115.8,2.8923613]
[1761635009432,0.001,4115.9,4115.8,1.00707339]
[1761635009592,0.001,4115.9,4115.8,2.8923613]
[1761635010827,0.001,4115.9,4115.8,0.4627]
[1761635011496,0.001,4115.9,4115.7,0.1216]
[1761635011897,0.001,4115.9,4115.7,0.5843]
[1761635012299,0.001,4115.9,4115.8,0.4627]
[1761635012833,0.001,4115.9,4115.7,0.1216]
[1761635012834,2.43060227,4115.9,4115.7,0.1216]
[1761635013556,2.43061971,4115.9,4115.3,0.2201]
[1761635013754,2.43061971,4115.9,4115.3,0.1216]
[1761635013755,2.5512613,4115.8,4115.3,0.1216]
[1761635013905,2.42989387,4115.5,4114.8,0.4627]
[1761635014225,2.42992041,4115.4,4115.0,0.1216]
[1761635014409,0.1216,4115.8,4115.0,0.1216]
[1761635014610,2.4298954,4115.5,4115.1,0.672]
[1761635014923,2.42991116,4115.4,4115.1,0.672]
[1761635015536,2.42979966,4115.6,4115.1,0.672]
[1761635015737,2.42979966,4115.6,4115.5,14.5]
[1761635016343,2.42974653,4115.7,4115.5,14.5]
[1761635016636,2.42977937,4115.6,4115.5,0.4568]
[1761635017131,0.001,4115.9,4115.5,15.0784]
[1761635017332,0.001,4115.9,4115.6,1.75082792]
[1761635017561,0.001,4115.9,4115.6,0.4568]
[1761635017723,0.001,4115.9,4115.8,3.9848613]
[1761635018045,0.001,4115.9,4115.8,18.8903653]
[1761635018200,0.001,4115.9,4115.8,19.3471653]
[1761635022518,0.001,4115.9,4115.8,18.9416613]
[1761635022751,0.001,4115.9,4115.8,21.07879946]
[1761635023054,0.1641,4116.9,4115.8,21.07879946]
[1761635023216,2.42896292,4117.0,4116.3,2.42933778]
[1761635023627,1.5552,4117.7,4116.9,14.5]
[1761635023829,2.42888694,4117.2,4116.9,14.5]
[1761635024149,2.42882307,4117.3,4116.2,3.10141832]
[1761635024350,0.001,4116.4,4116.3,0.48109366]
[1761635024555,0.001,4116.4,4116.3,14.9568]
[1761635024856,0.001,4116.4,4116.3,17.38616617]
[1761635025052,0.001,4116.4,4116.3,19.14630279]
[1761635026352,0.001,4116.4,4116.3,14.5]
[1761635026531,0.001,4116.4,4116.3,17.38616617]
[1761635027761,0.001,4116.4,4116.3,17.50776617]
[1761635027939,0.001,4116.4,4116.3,17.79167017]
[1761635028317,0.001,4116.4,4116.3,17.38616617]
[1761635028564,0.001,4116.4,4116.3,19.38924838]
[1761635029761,0.001,4116.4,4116.3,19.79475238]
[1761635030442,0.001,4116.4,4116.3,19.38924838]
[1761635032162,0.001,4116.4,4116.3,19.79475238]
[1761635032464,0.001,4116.4,4116.3,19.38924838]
[1761635034065,0.001,4116.4,4116.3,16.50308221]
[1761635034275,0.001,4116.4,4116.3,18.93244838]
[1761635034571,0.001,4116.4,4116.3,19.38924838]
[1761635037940,0.001,4116.4,4116.3,19.51084838]
[1761635038665,0.001,4116.4,4116.3,19.79475238]
[1761635038865,0.001,4116.4,4116.3,19.91635238]
[1761635041784,0.001,4116.4,4116.3,19.91835238]
[1761635042975,0.001,4116.4,4116.3,21.47355238]
[1761635046288,0.001,4116.4,4116.3,21.35195238]
[1761635050685,0.001,4116.4,4116.3,23.91295238]
[1761635050858,0.001,4116.4,4116.3,27.10791574]
[1761635052664,0.001,4116.8,4116.7,6.95083412]
[1761635052862,0.001,4116.8,4116.7,8.04435808]
[1761635053086,0.001,4116.8,4116.7,8.48835808]
[1761635053288,0.001,4116.8,4116.7,22.98835808]
[1761635053590,0.09715387,4120.2,4119.6,2.42741896]
[1761635053898,0.213,4119.9,4119.7,0.2427419]
[1761635054196,0.10715387,4121.8,4119.7,16.460704]
[1761635054369,0.109,4120.8,4119.7,19.33206521]
[1761635054756,0.109,4120.8,4119.7,16.92736121]
[1761635054956,0.213,4119.9,4119.7,16.92736121]
[1761635055191,0.01,4120.8,4119.7,16.92736121]
[1761635055393,0.311,4120.5,4119.7,17.33286521]
[1761635055693,0.311,4120.5,4119.7,19.30889921]
[1761635055854,0.311,4120.5,4119.7,18.90339521]
[1761635056190,0.311,4120.5,4119.7,16.92736121]
[1761635056392,0.311,4120.5,4119.7,17.04896121]
[1761635056552,0.01,4120.8,4119.7,17.04896121]
[1761635056553,2.42682373,4120.7,4119.7,17.04896121]
[1761635056779,0.099,4120.3,4119.7,17.04896121]
[1761635057194,0.01,4120.8,4119.7,17.04896121]
[1761635057593,0.311,4120.4,4119.7,17.04896121]
[1761635057806,0.2142,4119.9,4119.7,17.04896121]
[1761635059185,0.1001,4120.7,4119.7,17.04896121]
[1761635059782,0.1001,4120.5,4119.7,17.04896121]
[1761635060203,0.01,4120.8,4119.7,17.04896121]
[1761635060431,0.01,4120.8,4119.7,17.89846521]
[1761635061000,0.011,4119.8,4119.7,17.89846521]
[1761635061392,0.011,4119.8,4119.7,19.45366521]
[1761635061591,0.011,4119.8,4119.7,21.6417793]
[1761635062783,0.001,4120.3,4120.2,2.83257064]
[1761635063116,0.001,4120.3,4120.2,4.5336413]
[1761635063323,0.001,4120.3,4120.2,5.30094172]
[1761635063495,0.001,4120.3,4120.2,20.81456402]
[1761635063696,0.001,4120.7,4120.3,0.405504]
[1761635064003,0.001,4120.7,4120.6,4.38753504]
[1761635064239,0.05,4122.4,4120.6,17.750704]
[1761635064443,0.05,4122.4,4120.8,1.960704]
[1761635064444,0.3141,4122.2,4120.8,1.960704]
[1761635064636,0.3141,4122.2,4121.0,0.405504]
[1761635064950,0.05,4122.4,4120.5,0.444]
[1761635064951,0.3241,4121.8,4120.5,0.444]
[1761635065258,0.3241,4121.8,4121.7,14.5]
[1761635066250,0.01,4121.8,4121.7,14.5]
[1761635068660,0.109,4121.8,4121.7,14.5]
[1761635069655,0.01,4121.8,4121.7,14.5]
[1761635069839,0.01,4121.8,4121.7,16.92618337]
[1761635070149,0.01,4121.8,4121.7,18.53262117]
[1761635070516,0.01,4121.8,4121.7,19.38212517]
[1761635071133,0.01,4121.8,4121.7,20.93732517]
[1761635071958,0.01,4121.8,4121.7,20.49332517]
[1761635072265,0.01,4121.8,4121.7,20.08782117]
[1761635073274,0.01,4121.8,4121.7,20.53182117]
[1761635073886,0.01,4121.8,4121.7,20.65342117]
[1761635074046,0.01,4121.8,4121.7,21.05892517]
[1761635074956,0.01,4121.8,4121.7,20.61492517]
[1761635075489,0.01,4121.8,4121.7,18.65422117]
[1761635075790,0.01,4121.8,4121.7,14.6216]
[1761635078250,0.01,4121.8,4121.7,17.04778337]
[1761635078579,0.011,4121.8,4121.7,14.6216]
[1761635080560,0.011,4121.8,4121.7,17.04778337]
[1761635081108,0.2138,4125.0,4123.7,2.42500666]
[1761635081413,0.2138,4125.0,4123.7,4.86196072]
[1761635081700,0.2138,4125.0,4123.7,20.18801557]
[1761635081859,0.2127,4125.3,4123.7,20.18801557]
[1761635082062,0.05,4125.4,4124.7,2.82992274]
[1761635082375,0.05,4125.4,4124.7,2.95152274]
[1761635082560,0.05,4125.4,4124.7,3.40352274]
[1761635082767,0.05,4125.4,4124.7,17.90352274]
[1761635083076,0.05,4125.4,4124.7,19.95793505]
[1761635083283,0.05,4125.4,4124.7,20.29884913]
[1761635083487,0.05,4125.4,4124.7,19.95793505]
[1761635083697,0.05,4125.4,4124.7,20.29884913]
[1761635083891,0.05,4125.4,4124.7,19.95793505]
[1761635084213,0.05,4125.4,4124.7,20.29884913]
[1761635085489,0.05,4125.4,4124.7,19.84684913]
[1761635085807,0.05,4125.4,4124.7,19.50593505]
[1761635086104,0.05,4125.4,4124.7,19.95793505]
[1761635089624,0.05,4125.4,4124.7,19.50593505]
[1761635089927,0.149,4125.4,4124.7,19.10043105]
[1761635090093,0.149,4125.4,4124.7,16.67601231]
[1761635090286,0.149,4125.4,4124.7,14.6216]
[1761635090620,0.05,4125.4,4124.7,17.04601874]
[1761635090988,0.05,4125.4,4124.7,17.49801874]
[1761635091483,0.05,4125.4,4124.7,19.33712274]
[1761635091690,0.05,4125.4,4124.7,19.65180056]
[1761635091891,0.05,4125.4,4125.3,2.42406612]
[1761635092195,0.05,4125.4,4125.3,4.3181846]
[1761635092400,0.05,4125.4,4125.3,4.69944794]
[1761635092613,0.05,4125.4,4125.3,19.6756886]
[1761635092795,0.05,4125.4,4125.3,19.65144794]
[1761635092982,0.05,4125.4,4125.3,17.04385098]
[1761635093182,0.05,4125.4,4125.3,19.15323928]
[1761635093581,0.05,4125.4,4125.3,19.60523928]
[1761635094026,0.05,4125.4,4125.3,20.01074328]
[1761635094396,0.05,4125.4,4125.3,19.60523928]
[1761635095340,0.05,4125.4,4125.3,21.8366027]
[1761635095535,1e-08,4125.4,4125.3,21.8366027]
[1761635095713,0.01,4125.8,4125.5,2.82945261]
[1761635095911,0.01,4125.8,4125.7,2.8293351]
[1761635096114,0.01,4125.8,4125.7,3.09999452]
[1761635096434,0.01,4125.8,4125.7,18.05199452]
[1761635096795,0.05,4128.4,4126.4,2.42337879]
[1761635097002,0.05,4128.4,4126.1,2.42356738]
[1761635097221,2.42236325,4128.2,4125.6,2.4238436]
[1761635097421,0.405504,4128.3,4125.6,2.42388985]
[1761635097422,0.115,4125.7,4125.6,2.42388985]
[1761635097936,0.115,4125.7,4125.6,14.5]
[1761635098939,0.115,4126.0,4125.8,2.42376421]
[1761635099148,0.115,4126.0,4125.6,15.95]
[1761635099306,0.115,4126.0,4125.8,2.42372796]
[1761635099307,0.106,4126.0,4125.8,2.42372796]
[1761635099508,0.106,4126.0,4125.9,3.05347415]
[1761635099705,0.106,4126.0,4125.9,15.12976054]
[1761635099931,0.106,4126.0,4125.9,17.55347415]
[1761635100112,0.106,4126.0,4125.9,15.12976054]
[1761635100310,0.106,4126.0,4125.9,14.5]
[1761635100535,2.62865487,4126.0,4125.9,14.5]
[1761635100839,0.205,4126.0,4125.9,14.5]
[1761635101053,2.62865487,4126.0,4125.9,14.5]
[1761635101415,0.106,4126.0,4125.9,14.5]
[1761635101633,0.106,4126.0,4125.9,15.95]
[1761635102072,0.106,4126.0,4125.9,18.37371361]
[1761635102764,0.106,4126.0,4125.9,15.95]
[1761635102974,0.205,4126.0,4125.9,14.5]
[1761635104181,2.62865487,4126.0,4125.9,14.5]
[1761635105196,2.42412489,4125.2,4125.1,0.01]
[1761635105663,2.52312489,4125.2,4125.1,0.01]
[1761635106066,0.099,4125.2,4125.1,14.51]
[1761635106487,2.52312489,4125.2,4125.1,14.51]
[1761635106702,2.52312489,4125.2,4125.1,0.01]
[1761635107006,3.97938365,4125.1,4124.6,0.002]
[1761635107179,14.73487875,4124.7,4124.6,0.002]
[1761635107377,4.38512274,4124.7,4124.6,0.002]
[1761635107709,2.42488906,4123.9,4123.8,0.002]
[1761635108010,2.42488906,4123.9,4122.4,0.05]
[1761635108011,17.15976781,4123.9,4123.2,14.5]
[1761635108217,15.60492066,4123.3,4123.2,14.5]
[1761635108530,3.98050073,4123.2,4122.4,0.05]
[1761635108674,4.07950073,4123.2,4122.4,0.05]
[1761635109073,2.42571255,4122.5,4122.4,0.05]
[1761635109278,17.5660953,4122.5,4122.4,0.05]
[1761635109486,17.6561953,4122.5,4122.4,0.05]
[1761635109687,17.6561953,4122.5,4122.4,1e-08]
[1761635109918,17.6561953,4122.5,4121.1,0.01]
[1761635109919,2.42588908,4122.2,4122.1,1e-08]
[1761635110281,4.07118908,4122.2,4122.1,1e-08]
[1761635110475,4.47669308,4122.2,4122.1,1e-08]
[1761635110717,2.42647772,4121.2,4121.1,0.01]
[1761635110903,17.16135647,4121.2,4121.1,0.01]
[1761635111103,17.25145647,4121.2,4121.1,0.01]
[1761635111616,17.65696047,4121.2,4121.1,1e-08]
[1761635112113,2.42700774,4120.3,4119.7,0.0736]
[1761635112286,15.09917952,4120.2,4119.7,0.0736]
[1761635112480,17.61634616,4120.2,4119.7,0.0736]
[1761635113014,0.1216,4120.2,4119.7,0.0736]
[1761635113223,2.63876664,4120.2,4119.7,0.0736]
[1761635117627,2.63876664,4120.2,4120.1,0.012]
[1761635118195,3.04427064,4120.2,4120.1,0.012]
[1761635118404,2.63876664,4120.2,4120.1,0.012]
[1761635119047,3.04427064,4120.2,4119.7,1e-08]
[1761635119206,16.01248504,4119.8,4119.7,1e-08]
[1761635119522,17.68928504,4119.8,4119.7,1e-08]
[1761635119847,17.77938504,4119.8,4119.7,1e-08]
[1761635120045,4.47810629,4119.8,4119.7,1e-08]
[1761635123349,4.38800629,4119.8,4119.7,1e-08]
[1761635123641,4.47810629,4119.8,4119.7,1e-08]
[1761635123868,3.98250229,4119.8,4119.7,1e-08]
[1761635124147,2.42730229,4119.8,4119.7,1e-08]
[1761635124301,2.42605847,4122.0,4119.7,1e-08]
[1761635124302,2.4265366,4121.1,4119.7,1e-08]
[1761635124644,2.42722877,4120.0,4119.7,1e-08]
[1761635124844,2.42712694,4120.1,4119.7,1e-08]
[1761635125042,2.42718647,4120.0,4119.7,1e-08]
[1761635125399,2.42715654,4120.1,4119.7,1e-08]
[1761635125605,2.42708808,4120.2,4119.7,1e-08]
[1761635125837,2.42713375,4120.1,4119.7,1e-08]
[1761635126138,2.42721146,4120.0,4119.7,1e-08]
[1761635126344,2.42728288,4119.9,4119.7,1e-08]
[1761635126502,2.42683104,4120.6,4119.7,1e-08]
[1761635126503,2.42730229,4119.8,4119.7,1e-08]
[1761635126948,0.0901,4120.5,4119.7,1e-08]
[1761635127253,2.42718123,4120.1,4119.7,1e-08]
[1761635127551,2.42714157,4120.1,4119.7,1e-08]
[1761635127759,2.42720341,4120.0,4119.7,0.45090001]
[1761635128233,2.42730229,4119.8,4119.7,1e-08]
[1761635128814,2.42671621,4120.8,4119.7,0.45090001]
[1761635129050,0.24267162,4120.7,4119.7,1e-08]
[1761635129351,2.42730229,4119.8,4119.7,1e-08]
[1761635129712,2.51740229,4119.8,4119.7,1e-08]
[1761635129916,4.19420229,4119.8,4119.7,1e-08]
[1761635130317,4.59970629,4119.8,4119.7,1e-08]
[1761635130556,4.87507491,4119.8,4119.7,1e-08]
[1761635131891,18.0971956,4119.8,4119.7,1e-08]